bitfinex-derivatives/quotes_BTCF0:USTF0_20241025
["timestamp","ask_amount","ask_price","bid_price","bid_amount"]
[1729816069611,0.12329337,68205.0,68204.0,0.073341]
[1729816070313,0.12329337,68205.0,68204.0,0.11730091]
[1729816070713,0.04995237,68205.0,68204.0,0.11730091]
[1729816070921,0.04995237,68205.0,68204.0,0.073341]
[1729816072424,0.12329337,68205.0,68204.0,0.073341]
[1729816075518,0.04995237,68205.0,68204.0,0.073341]
[1729816076123,0.00908394,68206.0,68203.0,0.05863199]
[1729816076310,0.04995237,68208.0,68204.0,0.05863199]
[1729816076510,0.12329137,68208.0,68207.0,0.11729488]
[1729816076711,0.13239539,68208.0,68207.0,0.11729488]
[1729816077611,0.13239539,68208.0,68207.0,0.073339]
[1729816078216,0.13239539,68208.0,68207.0,0.11729166]
[1729816078421,0.13239539,68208.0,68207.0,0.073339]
[1729816078815,0.13239539,68208.0,68207.0,0.11729216]
[1729816079516,0.13239539,68208.0,68207.0,0.04395316]
[1729816082314,0.3608,68211.0,68207.0,0.073339]
[1729816082515,0.3618,68219.0,68218.0,0.073327]
[1729816082713,0.3618,68219.0,68218.0,0.17323174]
[1729816082916,0.41175237,68219.0,68218.0,0.11725665]
[1729816083223,0.41075237,68219.0,68218.0,0.11725665]
[1729816083535,0.41075237,68219.0,68218.0,0.073327]
[1729816083724,0.41992998,68219.0,68218.0,0.073327]
[1729816083912,0.36997761,68219.0,68218.0,0.073327]
[1729816086735,0.41992998,68219.0,68218.0,0.073327]
[1729816091042,0.41992998,68219.0,68215.0,0.04392965]
[1729816091232,0.12328137,68216.0,68215.0,0.04392965]
[1729816093021,0.12328137,68216.0,68214.0,0.04392965]
[1729816093228,0.04995237,68215.0,68214.0,0.04392965]
[1729816095036,0.00917761,68219.0,68214.0,0.11726065]
[1729816095037,0.04995237,68218.0,68214.0,0.11726065]
[1729816095333,0.12328037,68218.0,68214.0,0.073331]
[1729816095530,0.12328037,68218.0,68217.0,0.073328]
[1729816101030,0.04995237,68218.0,68217.0,0.073328]
[1729816102235,0.44419198,68221.0,68220.0,0.073325]
[1729816102236,0.37086798,68221.0,68220.0,0.073325]
[1729816102428,0.36982797,68221.0,68220.0,0.12327737]
[1729816102729,0.41978034,68221.0,68220.0,0.073325]
[1729816109142,0.41978034,68221.0,68220.0,0.1172198]
[1729816109343,0.41978034,68221.0,68220.0,0.073325]
[1729816111141,0.04995237,68220.0,68219.0,0.04398126]
[1729816111330,0.17322974,68220.0,68219.0,0.04398126]
[1729816111529,0.073328,68217.0,68216.0,0.05857287]
[1729816111746,0.12328037,68217.0,68216.0,0.13190187]
[1729816112638,0.04995237,68217.0,68216.0,0.073329]
[1729816113862,0.073332,68213.0,68212.0,0.0732011]
[1729816114051,0.073332,68213.0,68211.0,0.073333]
[1729816114052,0.12328537,68212.0,68211.0,0.073333]
[1729816114649,0.073334,68211.0,68210.0,0.3608]
[1729816114851,0.09990474,68212.0,68210.0,0.05868846]
[1729816115057,0.073334,68211.0,68210.0,0.05868846]
[1729816115254,0.073336,68210.0,68209.0,0.05868846]
[1729816115453,0.04995237,68209.0,68208.0,0.04401991]
[1729816115652,0.04995237,68209.0,68206.0,0.0021992]
[1729816115653,0.12329037,68208.0,68207.0,0.04401991]
[1729816115856,0.073339,68207.0,68206.0,0.0021992]
[1729816119762,0.44205237,68209.0,68205.0,0.04995237]
[1729816119763,0.3618,68209.0,68205.0,0.04995237]
[1729816119964,0.073339,68207.0,68206.0,0.04995237]
[1729816120556,0.12329137,68207.0,68205.0,0.04995237]
[1729816120754,0.04995237,68206.0,68205.0,0.04995237]
[1729816121761,0.04995237,68206.0,68203.0,0.12329537]
[1729816122162,0.04995237,68206.0,68203.0,0.073343]
[1729816122867,0.12329237,68206.0,68203.0,0.073343]
[1729816123954,0.04995237,68206.0,68203.0,0.073343]
[1729816124159,0.073342,68205.0,68204.0,0.073342]
[1729816124360,0.48408937,68209.0,68206.0,0.073339]
[1729816124562,0.073338,68208.0,68207.0,0.13320474]
[1729816124868,0.073338,68208.0,68207.0,0.0333]
[1729816127270,0.073338,68208.0,68207.0,0.106639]
[1729816129664,0.073338,68208.0,68207.0,0.0333]
[1729816131871,0.073338,68208.0,68207.0,0.106639]
[1729816132974,0.073338,68208.0,68207.0,0.0333]
[1729816136663,0.073338,68208.0,68204.0,0.09516]
[1729816136664,0.41175237,68209.0,68203.0,0.04401991]
[1729816136977,0.073344,68202.0,68201.0,0.104445]
[1729816137864,0.073344,68202.0,68201.0,0.14846491]
[1729816139579,0.073344,68202.0,68201.0,0.104445]
[1729816142378,0.08264137,68202.0,68201.0,0.104445]
[1729816142585,0.08264137,68202.0,68201.0,0.16313346]
[1729816143580,0.13259374,68202.0,68201.0,0.16313346]
[1729816143777,0.13259374,68202.0,68201.0,0.104445]
[1729816143978,0.08264137,68202.0,68201.0,0.104445]
[1729816147579,0.04995237,68204.0,68203.0,0.073343]
[1729816148386,0.07433,68215.0,68201.0,0.0311]
[1729816148387,0.41075237,68207.0,68201.0,0.0311]
[1729816148586,0.3608,68207.0,68206.0,0.23194595]
[1729816148787,0.3608,68215.0,68214.0,0.073331]
[1729816148975,0.37002499,68215.0,68214.0,0.17323574]
[1729816149285,0.44335499,68215.0,68214.0,0.12328337]
[1729816149584,0.44335499,68215.0,68214.0,0.18194314]
[1729816149882,0.44335499,68215.0,68214.0,0.13199077]
[1729816149883,0.54325973,68215.0,68214.0,0.13199077]
[1729816150089,0.54325973,68215.0,68214.0,0.073331]
[1729816152289,0.46992973,68215.0,68214.0,0.073331]
[1729816153494,0.46992973,68215.0,68214.0,0.11729094]
[1729816154188,0.46992973,68215.0,68214.0,0.16724331]
[1729816154985,0.46992973,68215.0,68214.0,0.12328337]
[1729816156593,0.46992973,68215.0,68214.0,0.16722592]
[1729816156979,0.46992973,68215.0,68214.0,0.11727355]
[1729816157489,0.46992973,68215.0,68214.0,0.073331]
[1729816158784,0.54325973,68215.0,68214.0,0.073331]
[1729816160686,0.54325973,68215.0,68211.0,0.04394255]
[1729816160687,0.073333,68212.0,68211.0,0.04394255]
[1729816160990,0.12328637,68211.0,68209.0,0.04394255]
[1729816161393,0.12328637,68211.0,68209.0,0.11727855]
[1729816161791,0.12328637,68211.0,68210.0,0.073336]
[1729816162101,0.12328637,68211.0,68210.0,0.11727855]
[1729816168400,0.073334,68211.0,68210.0,0.11727855]
[1729816168986,0.073334,68211.0,68210.0,0.073336]
[1729816169905,0.12328637,68211.0,68210.0,0.073336]
[1729816173892,0.12328637,68211.0,68210.0,0.13199577]
[1729816174101,0.12328637,68211.0,68210.0,0.073336]
[1729816174495,0.12328637,68211.0,68210.0,0.13199577]
[1729816176803,0.12328637,68211.0,68210.0,0.073336]
[1729816176997,0.12328637,68211.0,68210.0,0.0439922]
[1729816176998,0.04995237,68211.0,68210.0,0.0439922]
[1729816177198,0.04995237,68211.0,68198.0,0.00076]
[1729816177199,0.073337,68209.0,68208.0,0.1173302]
[1729816177406,0.073341,68205.0,68204.0,0.1319899]
[1729816178403,0.12329337,68205.0,68204.0,0.1319899]
[1729816178601,0.12329337,68205.0,68204.0,0.0586479]
[1729816178803,0.073342,68204.0,68203.0,0.0586479]
[1729816179008,0.12329537,68203.0,68202.0,0.0586479]
[1729816179301,0.073345,68201.0,68200.0,0.0586479]
[1729816179808,0.073346,68200.0,68199.0,0.0586479]
[1729816180311,0.12329637,68202.0,68201.0,0.073345]
[1729816186109,0.12329637,68202.0,68201.0,0.1672496]
[1729816186412,0.12497843,68202.0,68201.0,0.1672496]
[1729816186909,0.12497843,68202.0,68201.0,0.073345]
[1729816189310,0.12497843,68202.0,68201.0,0.11729723]
[1729816196206,0.12497843,68202.0,68201.0,0.073345]
[1729816197010,0.12497843,68202.0,68201.0,0.11729317]
[1729816197710,0.00168206,68202.0,68201.0,0.11729317]
[1729816197909,0.00168206,68202.0,68201.0,0.073345]
[1729816198107,0.05163443,68202.0,68201.0,0.073345]
[1729816198302,0.1015868,68202.0,68201.0,0.13199313]
[1729816200507,0.1015868,68202.0,68201.0,0.073345]
[1729816201306,0.00168206,68202.0,68201.0,0.073345]
[1729816201507,0.05163443,68202.0,68201.0,0.073345]
[1729816201908,0.00168206,68202.0,68201.0,0.56317737]
[1729816202109,0.00168206,68202.0,68201.0,0.61312974]
[1729816202515,0.00168206,68202.0,68201.0,0.65708422]
[1729816203611,0.00168206,68202.0,68201.0,0.073345]
[1729816203813,0.07502606,68202.0,68201.0,0.073345]
[1729816206224,0.073346,68200.0,68199.0,0.073347]
[1729816206416,0.29265909,68200.0,68199.0,0.073347]
[1729816207320,0.29434115,68200.0,68199.0,0.073347]
[1729816209617,0.34429352,68200.0,68199.0,0.073347]
[1729816209917,0.482251,68200.0,68199.0,0.073347]
[1729816210120,0.53487217,68200.0,68199.0,0.073347]
[1729816210817,0.53487217,68200.0,68192.0,0.00219933]
[1729816210818,0.073351,68196.0,68195.0,0.073351]
[1729816211121,0.29266409,68196.0,68195.0,0.073351]
[1729816211322,0.29434615,68196.0,68195.0,0.073351]
[1729816211923,0.29214952,68196.0,68195.0,0.073351]
[1729816212122,0.29214952,68196.0,68195.0,0.04201309]
[1729816213128,0.1571486,68196.0,68195.0,0.04201309]
[1729816223444,0.12498543,68196.0,68195.0,0.04201309]
[1729816228140,0.23882403,68196.0,68195.0,0.04201309]
[1729816228336,0.35503166,68196.0,68195.0,0.04201309]
[1729816228536,0.45269302,68196.0,68195.0,0.04201309]
[1729816230045,0.29144886,68196.0,68195.0,0.04201309]
[1729816233445,0.29144886,68196.0,68194.0,0.073353]
[1729816233446,0.12330437,68195.0,68194.0,0.073353]
[1729816233748,0.2897678,68195.0,68194.0,0.073353]
[1729816234457,0.29144986,68195.0,68194.0,0.073353]
[1729816235139,0.29144986,68195.0,68191.0,0.0737526]
[1729816235140,0.04995237,68194.0,68191.0,0.0737526]
[1729816235343,0.04995237,68192.0,68191.0,0.0737526]
[1729816235536,0.2164158,68192.0,68191.0,0.0737526]
[1729816236139,0.04995237,68192.0,68191.0,0.0737526]
[1729816236543,0.05163443,68192.0,68191.0,0.0737526]
[1729816236743,0.05163443,68192.0,68191.0,0.1471086]
[1729816241348,0.1015868,68192.0,68191.0,0.1471086]
[1729816242349,0.05163443,68192.0,68191.0,0.1471086]
[1729816242551,0.00168206,68192.0,68191.0,0.19106308]
[1729816242949,0.00168206,68192.0,68191.0,0.1471086]
[1729816243150,0.16780939,68192.0,68191.0,0.09488]
[1729816243349,0.16780939,68192.0,68190.0,0.09488]
[1729816243550,0.16612733,68191.0,68190.0,0.21818937]
[1729816244458,0.16780939,68191.0,68190.0,0.21818937]
[1729816248759,0.16780939,68191.0,68190.0,0.08347509]
[1729816249850,0.29111776,68191.0,68190.0,0.073357]
[1729816250052,0.29111776,68191.0,68186.0,0.073361]
[1729816250053,0.073362,68187.0,68186.0,0.073361]
[1729816250256,0.23681674,68187.0,68186.0,0.073361]
[1729816250456,0.21776176,68187.0,68186.0,0.073361]
[1729816250967,0.1651368,68187.0,68186.0,0.073361]
[1729816251263,0.05163443,68187.0,68186.0,0.073361]
[1729816252165,0.05163443,68187.0,68186.0,0.11737865]
[1729816253454,0.00168206,68187.0,68186.0,0.11737865]
[1729816254061,0.00168206,68187.0,68186.0,0.073361]
[1729816254656,0.00168206,68187.0,68186.0,0.11737138]
[1729816256862,0.1015868,68187.0,68186.0,0.073361]
[1729816258265,0.16132962,68187.0,68181.0,0.45644]
[1729816258471,0.04995237,68183.0,68182.0,0.073366]
[1729816258765,0.1145485,68183.0,68182.0,0.073366]
[1729816258961,0.15958944,68183.0,68182.0,0.073366]
[1729816259566,0.1612715,68183.0,68182.0,0.073366]
[1729816260171,0.21122387,68183.0,68182.0,0.073366]
[1729816260371,0.26385295,68183.0,68182.0,0.073366]
[1729816261963,0.15421588,68183.0,68182.0,0.073366]
[1729816262261,0.21090694,68183.0,68182.0,0.073366]
[1729816262462,0.26353602,68183.0,68182.0,0.073366]
[1729816263672,0.26353602,68183.0,68181.0,0.00084]
[1729816263673,0.073366,68182.0,68181.0,0.00084]
[1729816263968,0.073366,68182.0,68177.0,0.05215224]
[1729816263969,0.16194922,68182.0,68177.0,0.05215224]
[1729816264175,0.03418206,68183.0,68180.0,0.12332037]
[1729816264176,0.16194922,68181.0,68180.0,0.12332037]
[1729816264361,0.10932014,68181.0,68180.0,0.17327274]
[1729816264674,0.1110022,68181.0,68180.0,0.17327274]
[1729816265079,0.00168206,68181.0,68180.0,0.17327274]
[1729816267669,0.00168206,68181.0,68180.0,0.073368]
[1729816269285,0.00168206,68181.0,68180.0,0.434168]
[1729816269782,0.00168206,68181.0,68180.0,0.4781582]
[1729816270075,0.00168206,68181.0,68180.0,0.434168]
[1729816272480,0.00168206,68181.0,68180.0,0.48412037]
[1729816272679,0.00168206,68181.0,68180.0,0.57806294]
[1729816272886,0.00168206,68181.0,68180.0,0.53407274]
[1729816273073,0.05163443,68181.0,68180.0,0.434168]
[1729816275889,0.00168206,68181.0,68180.0,0.53407274]
[1729816277189,0.00168206,68181.0,68180.0,0.59267872]
[1729816277589,0.05163443,68181.0,68180.0,0.49277398]
[1729816279080,0.05163443,68181.0,68180.0,0.434168]
[1729816280185,0.21090908,68181.0,68180.0,0.15515172]
[1729816280386,0.26354013,68181.0,68180.0,0.15515172]
[1729816280888,0.26354013,68181.0,68180.0,0.22851972]
[1729816285096,0.26354013,68181.0,68180.0,0.073368]
[1729816285297,0.2635462,68181.0,68180.0,0.073368]
[1729816288187,0.15421785,68181.0,68180.0,0.073368]
[1729816288497,0.1015868,68181.0,68180.0,0.073368]
[1729816295296,0.1015868,68181.0,68180.0,0.17823593]
[1729816303316,0.21091507,68181.0,68180.0,0.073368]
[1729816308229,0.1609627,68181.0,68180.0,0.073368]
[1729816308608,0.35273435,68181.0,68180.0,0.073368]
[1729816308921,0.16096189,68181.0,68180.0,0.073368]
[1729816310318,0.05163443,68181.0,68180.0,0.17725566]
[1729816310717,0.00168206,68181.0,68180.0,0.17725566]
[1729816311019,0.05163443,68181.0,68180.0,0.26529141]
[1729816311223,0.1015868,68181.0,68180.0,0.26529141]
[1729816312220,0.1015868,68181.0,68180.0,0.17725566]
[1729816312831,0.7015868,68181.0,68180.0,0.08807666]
[1729816313139,0.3608,68129.0,68127.0,0.07311774]
[1729816313332,0.04995237,68127.0,68116.0,0.05875217]
[1729816313624,0.7216,68117.0,68106.0,0.09990474]
[1729816313827,0.3608,68110.0,68106.0,0.09990474]
[1729816314024,0.3608,68110.0,68109.0,0.09990474]
[1729816314327,0.3608,68110.0,68109.0,0.1027572]
[1729816314626,0.36248206,68110.0,68109.0,0.1027572]
[1729816317025,0.31258206,68110.0,68109.0,0.25516904]
[1729816317723,0.16288206,68110.0,68109.0,0.25516904]
[1729816317924,0.11298206,68110.0,68109.0,0.25516904]
[1729816318228,0.3608,68117.0,68115.0,0.073437]
[1729816318427,0.3608,68123.0,68108.0,0.1056]
[1729816318428,0.3608,68123.0,68116.0,0.25516904]
[1729816318730,0.3608,68123.0,68111.0,0.3608]
[1729816318731,0.3608,68123.0,68122.0,0.1027572]
[1729816319524,0.3608,68123.0,68122.0,0.2153172]
[1729816323230,0.3608,68123.0,68122.0,0.1027572]
[1729816323429,0.3608,68123.0,68122.0,0.2153172]
[1729816323724,0.3608,68123.0,68122.0,0.1027572]
[1729816323928,0.3608,68123.0,68122.0,0.2153172]
[1729816324318,0.3608,68123.0,68120.0,0.073432]
[1729816324319,0.3608,68123.0,68107.0,0.07620592]
[1729816324522,0.07620592,68126.0,68096.0,0.3608]
[1729816324523,0.07620592,68107.0,68098.0,0.15241184]
[1729816324728,0.07620592,68107.0,68101.0,0.11256]
[1729816324931,0.3608,68109.0,68106.0,0.1762052]
[1729816325227,0.3608,68109.0,68108.0,0.1027572]
[1729816325436,0.07620592,68108.0,68106.0,0.05859674]
[1729816325633,0.27257284,68107.0,68106.0,0.05859674]
[1729816325933,0.27257387,68107.0,68106.0,0.05859674]
[1729816326931,0.94877979,68107.0,68090.0,0.16714173]
[1729816327231,0.94877979,68107.0,68078.0,0.3608]
[1729816327232,0.07347,68086.0,68078.0,0.07620592]
[1729816327434,0.19636795,68085.0,68074.0,0.3608]
[1729816327637,0.19356664,68084.0,68083.0,0.434272]
[1729816327939,0.3608,68097.0,68096.0,0.073458]
[1729816328134,0.58129794,68097.0,68096.0,0.073458]
[1729816328324,0.46389865,68097.0,68096.0,0.073458]
[1729816330127,0.58050387,68097.0,68096.0,0.073458]
[1729816332831,0.21970387,68097.0,68096.0,0.073458]
[1729816333034,0.10309865,68097.0,68096.0,0.59022392]
[1729816333335,0.07620592,68100.0,68096.0,0.514018]
[1729816333526,0.07620592,68100.0,68099.0,0.073455]
[1729816334244,0.178938,68100.0,68099.0,0.073455]
[1729816335128,0.10295299,68100.0,68099.0,0.073455]
[1729816335339,0.10295299,68100.0,68096.0,0.0293028]
[1729816335536,0.10295299,68099.0,68095.0,0.11936]
[1729816335733,0.10295299,68098.0,68097.0,0.073457]
[1729816336633,0.10295299,68098.0,68097.0,0.192857]
[1729816338035,0.3608,68101.0,68099.0,0.073455]
[1729816338338,0.3608,68101.0,68091.0,0.3608]
[1729816338339,0.073472,68083.0,68082.0,0.00220315]
[1729816338637,0.60743326,68083.0,68082.0,0.00220315]
[1729816338839,0.81718989,68083.0,68082.0,0.22808799]
[1729816339034,0.29701137,68083.0,68082.0,0.22808799]
[1729816339640,0.29701137,68083.0,68082.0,0.78812799]
[1729816340233,0.29701137,68083.0,68082.0,0.66872799]
[1729816340434,0.08524515,68083.0,68082.0,0.34748799]
[1729816340638,0.08524515,68083.0,68082.0,0.19507615]
[1729816341237,0.097339,68083.0,68082.0,0.19507615]
[1729816341442,0.18258415,68083.0,68082.0,0.19507615]
[1729816341639,0.18258415,68083.0,68082.0,0.34748799]
[1729816342141,0.08524515,68083.0,68082.0,0.34748799]
[1729816342444,0.29319852,68083.0,68082.0,0.34748799]
[1729816343244,0.29319852,68083.0,68082.0,0.22808799]
[1729816343435,0.29319852,68083.0,68082.0,0.15241184]
[1729816343643,0.29319852,68083.0,68082.0,0.27181184]
[1729816343841,0.29319852,68083.0,68082.0,0.34528484]
[1729816344244,0.28847896,68083.0,68082.0,0.34528484]
[1729816344545,0.28847896,68083.0,68082.0,0.22588484]
[1729816344740,0.28847896,68083.0,68082.0,0.34528484]
[1729816346245,0.28847896,68083.0,68082.0,0.22588484]
[1729816346446,0.28847896,68083.0,68082.0,0.34528484]
[1729816347749,0.10341916,68083.0,68082.0,0.93833668]
[1729816348054,0.08282151,68083.0,68082.0,0.78592484]
[1729816348448,0.10939138,68083.0,68082.0,0.62593722]
[1729816348847,0.23844942,68083.0,68082.0,0.69941022]
[1729816349245,0.13864942,68083.0,68082.0,0.69941022]
[1729816349445,0.13864942,68083.0,68082.0,0.77561614]
[1729816349649,0.00959138,68083.0,68082.0,0.69941022]
[1729816349949,0.00959138,68083.0,68082.0,0.70866891]
[1729816351853,3.8e-07,68083.0,68082.0,0.78487483]
[1729816352353,3.8e-07,68083.0,68082.0,0.86108075]
[1729816352548,3.8e-07,68083.0,68082.0,0.70866891]
[1729816353248,0.05396242,68097.0,68082.0,0.72171053]
[1729816353448,0.08651462,68095.0,68094.0,0.07346]
[1729816353642,0.08651462,68095.0,68094.0,0.19286]
[1729816355846,0.17353566,68095.0,68094.0,0.19286]
[1729816358255,0.17339839,68095.0,68094.0,0.19286]
[1729816358455,0.08651462,68095.0,68094.0,0.19286]
[1729816358650,0.27233367,68095.0,68094.0,0.19286]
[1729816359456,0.34716606,68095.0,68094.0,0.19286]
[1729816360755,0.24823078,68095.0,68094.0,0.19286]
[1729816361249,0.34724612,68095.0,68089.0,0.073466]
[1729816361561,0.07620592,68089.0,68085.0,0.12152]
[1729816361860,0.08651462,68079.0,68078.0,0.073477]
[1729816362053,0.52352054,68079.0,68078.0,0.073477]
[1729816362254,0.6852367,68079.0,68078.0,0.073477]
[1729816362458,0.78314707,68079.0,68078.0,0.073477]
[1729816362661,0.8591823,68079.0,68078.0,0.073477]
[1729816362963,0.70677046,68079.0,68078.0,0.073477]
[1729816363255,0.60903078,68079.0,68078.0,0.14968292]
[1729816363461,0.60903078,68079.0,68078.0,0.27120292]
[1729816363654,0.60903078,68079.0,68078.0,0.194997]
[1729816364054,0.6852367,68079.0,68078.0,0.073477]
[1729816364255,0.6852367,68079.0,68078.0,0.194997]
[1729816364864,0.07620592,68078.0,68072.0,0.073483]
[1729816365060,0.08651462,68069.0,68068.0,0.07569231]
[1729816365366,0.24696824,68069.0,68068.0,0.07569231]
[1729816365669,0.16134701,68069.0,68068.0,0.19721231]
[1729816365863,0.16134701,68069.0,68068.0,0.07569231]
[1729816366164,0.16134701,68069.0,68068.0,0.19721231]
[1729816366564,0.16134701,68069.0,68068.0,0.07569231]
[1729816366754,0.16134701,68069.0,68068.0,0.19721231]
[1729816367353,0.08651462,68069.0,68068.0,0.19721231]
[1729816367555,0.15738328,68069.0,68068.0,0.19721231]
[1729816369170,0.3608,68073.0,68068.0,0.12372331]
[1729816369368,0.3608,68073.0,68072.0,0.073484]
[1729816369570,0.43163738,68073.0,68072.0,0.073484]
[1729816369767,0.518152,68073.0,68072.0,0.073484]
[1729816370470,0.44731462,68073.0,68072.0,0.073484]
[1729816371470,0.59700354,68073.0,68068.0,0.12376331]
[1729816371665,0.08651462,68069.0,68068.0,0.19725031]
[1729816371864,0.08651462,68069.0,68068.0,0.07569031]
[1729816374173,0.08651462,68069.0,68059.0,0.07620592]
[1729816374376,0.44731462,68060.0,68059.0,0.073498]
[1729816374869,0.08651462,68060.0,68059.0,0.195058]
[1729816375065,0.0325,68068.0,68059.0,0.56236]
[1729816375265,0.3608,68072.0,68071.0,0.073485]
[1729816375768,0.44731462,68072.0,68071.0,0.073485]
[1729816378475,0.44731462,68072.0,68053.0,0.3616]
[1729816378686,0.08651462,68059.0,68058.0,0.073499]
[1729816378975,0.08651462,68055.0,68049.0,0.07620592]
[1729816379171,0.44731462,68055.0,68054.0,0.14970992]
[1729816379772,0.44731462,68055.0,68054.0,0.27126992]
[1729816380874,0.44731462,68055.0,68054.0,0.14970992]
[1729816381076,0.44731462,68055.0,68054.0,0.27126992]
[1729816381377,0.08651462,68055.0,68054.0,0.27126992]
[1729816381580,0.3608,68063.0,68062.0,0.073495]
[1729816381773,0.44731462,68063.0,68062.0,0.22590684]
[1729816384587,0.3608,68063.0,68062.0,0.22590684]
[1729816385281,0.44731462,68063.0,68062.0,0.22590684]
[1729816385475,0.44731462,68063.0,68062.0,0.073495]
[1729816385676,0.44731462,68063.0,68062.0,0.196815]
[1729816386186,0.44731462,68063.0,68062.0,0.073495]
[1729816386387,0.44731462,68063.0,68062.0,0.196815]
[1729816387373,0.59701454,68063.0,68058.0,0.073499]
[1729816387583,0.08651462,68059.0,68058.0,0.073499]
[1729816387781,0.08651462,68059.0,68058.0,0.196819]
[1729816388889,0.08651462,68059.0,68058.0,0.073499]
[1729816389089,0.08651462,68059.0,68058.0,0.196819]
[1729816389486,0.3301445,68059.0,68058.0,0.12332]
[1729816389694,0.41135467,68059.0,68058.0,0.196819]
[1729816390581,0.33014471,68059.0,68058.0,0.196819]
[1729816391282,0.33014471,68059.0,68058.0,0.073499]
[1729816391581,0.33014471,68059.0,68058.0,0.07912872]
[1729816391781,0.31724934,68059.0,68058.0,0.07912872]
[1729816392293,0.33014471,68059.0,68058.0,0.07912872]
[1729816392687,0.33014471,68059.0,68057.0,0.07620592]
[1729816392997,0.33014471,68059.0,68039.0,0.00906243]
[1729816392998,0.08651462,68045.0,68039.0,0.00906243]
[1729816393180,0.08651462,68045.0,68006.0,0.073555]
[1729816393181,0.073524,68036.0,68035.0,0.07620592]
[1729816393380,0.33014471,68036.0,68035.0,0.15241184]
[1729816393580,0.33014471,68036.0,68035.0,0.22593584]
[1729816393784,0.32662216,68036.0,68035.0,0.22593584]
[1729816393990,0.08651462,68036.0,68035.0,0.22593584]
[1729816394287,0.72284001,68040.0,68035.0,0.27573184]
[1729816394486,0.7216,68040.0,68039.0,0.07352]
[1729816394684,0.7216,68040.0,68039.0,0.19684]
[1729816394882,0.80811462,68040.0,68039.0,0.19684]
[1729816397893,0.3608,68044.0,68043.0,0.073516]
[1729816398287,0.44731462,68044.0,68043.0,0.073516]
[1729816401197,0.67994987,68044.0,68043.0,0.073516]
[1729816401592,0.78439445,68044.0,68039.0,0.07911952]
[1729816401792,0.07620592,68041.0,68040.0,0.073519]
[1729816401996,0.22053994,68041.0,68040.0,0.073519]
[1729816402288,0.30884117,68041.0,68040.0,0.073519]
[1729816402798,0.33560284,68041.0,68040.0,0.073519]
[1729816402995,0.39303049,68041.0,68040.0,0.196839]
[1729816403189,0.23263525,68041.0,68040.0,0.03498219]
[1729816403394,0.23263525,68041.0,68037.0,0.0313]
[1729816403698,0.33560284,68040.0,68039.0,0.07352]
[1729816404098,0.33560284,68040.0,68039.0,0.19684]
[1729816404891,0.28570284,68040.0,68039.0,0.19684]
[1729816405087,0.18273525,68040.0,68039.0,0.19684]
[1729816405794,0.18273525,68040.0,68039.0,0.14972592]
[1729816406094,0.18273525,68040.0,68039.0,0.27304592]
[1729816406799,0.10560525,68040.0,68039.0,0.71396592]
[1729816406996,0.1459358,68047.0,68039.0,0.71396592]
[1729816407201,0.23245042,68049.0,68048.0,0.07351]
[1729816407400,0.08651462,68049.0,68048.0,0.07351]
[1729816413112,0.43824593,68051.0,68050.0,0.073508]
[1729816413409,0.43700592,68051.0,68050.0,0.073508]
[1729816413616,0.52352054,68051.0,68050.0,0.073508]
[1729816419511,0.52352054,68051.0,68048.0,0.12332]
[1729816419713,0.08651462,68049.0,68048.0,0.12332]
[1729816420314,0.08651462,68049.0,68048.0,0.07351]
[1729816420516,0.50971317,68049.0,68041.0,0.073518]
[1729816420707,0.3608,68042.0,68041.0,0.073518]
[1729816420908,0.44731462,68042.0,68041.0,0.073518]
[1729816424217,0.75793617,68042.0,68035.0,0.00937541]
[1729816424411,0.07620592,68037.0,68036.0,0.073523]
[1729816424619,0.2092181,68037.0,68036.0,0.073523]
[1729816424916,0.29573272,68037.0,68036.0,0.073523]
[1729816425113,0.37710743,68037.0,68036.0,0.073523]
[1729816425315,0.47334808,68037.0,68036.0,0.073523]
[1729816426007,0.47334808,68037.0,68030.0,0.12484]
[1729816426008,0.07620592,68036.0,68035.0,0.073524]
[1729816426203,0.74763346,68036.0,68035.0,0.073524]
[1729816426404,0.83414808,68036.0,68035.0,0.073524]
[1729816428018,0.83414808,68036.0,68032.0,0.073527]
[1729816428217,0.23711118,68033.0,68032.0,0.073527]
[1729816428417,0.45663798,68033.0,68032.0,0.073527]
[1729816428623,0.07620592,68032.0,68028.0,0.073532]
[1729816428808,0.08651462,68026.0,68025.0,0.105635]
[1729816429015,0.5803268,68026.0,68025.0,0.105635]
[1729816429514,0.66170151,68026.0,68025.0,0.105635]
[1729816430216,0.57518689,68026.0,68025.0,0.25804684]
[1729816430416,0.36053942,68026.0,68025.0,0.25804684]
[1729816430617,0.06677344,68026.0,68025.0,0.69904684]
[1729816430927,0.00231571,68031.0,68025.0,0.69904684]
[1729816431224,0.14616422,68034.0,68033.0,0.073526]
[1729816431419,0.08651462,68038.0,68037.0,0.073522]
[1729816431615,0.08651462,68038.0,68037.0,0.22593384]
[1729816431915,0.08651462,68038.0,68037.0,0.35901384]
[1729816432628,0.3608,68042.0,68041.0,0.073518]
[1729816432917,0.3608,68042.0,68041.0,0.22592984]
[1729816433213,0.3608,68042.0,68041.0,0.26995366]
[1729816434218,0.3608,68042.0,68041.0,0.22592984]
[1729816434617,0.3608,68042.0,68041.0,0.26995366]
[1729816436128,0.44731462,68042.0,68041.0,0.26995366]
[1729816437622,0.44731462,68042.0,68041.0,0.22592984]
[1729816438221,0.52334758,68042.0,68041.0,0.22592984]
[1729816438517,0.53724017,68042.0,68041.0,0.10820858]
[1729816438722,0.68005009,68042.0,68041.0,0.10820858]
[1729816438916,0.68005009,68042.0,68041.0,0.18172658]
[1729816439117,0.68005009,68042.0,68041.0,0.073518]
[1729816440221,0.68005009,68042.0,68041.0,0.14972392]
[1729816440413,0.75433921,68042.0,68041.0,0.22592984]
[1729816440618,0.80850667,68042.0,68041.0,0.22592984]
[1729816440812,0.71858112,68042.0,68041.0,0.22592984]
[1729816441018,0.28574819,68042.0,68041.0,0.22592984]
[1729816441223,0.19697738,68042.0,68041.0,0.22592984]
[1729816441529,0.2830291,68042.0,68041.0,0.66684984]
[1729816442127,0.12222536,68042.0,68041.0,0.22592984]
[1729816442318,0.12222536,68042.0,68041.0,0.66684984]
[1729816442928,0.19697738,68042.0,68041.0,0.66684984]
[1729816443122,0.19697738,68042.0,68041.0,0.22592984]
[1729816443321,0.04333438,68042.0,68041.0,0.81926168]
[1729816443643,0.16074961,68045.0,68044.0,0.073514]
[1729816443819,0.3608,68055.0,68044.0,0.073514]
[1729816443820,0.16074961,68049.0,68044.0,0.3608]
[1729816444022,0.16074961,68051.0,68048.0,0.22592184]
[1729816444227,0.16074961,68051.0,68050.0,0.073508]
[1729816444727,0.3608,68055.0,68051.0,0.073507]
[1729816444728,0.16074961,68052.0,68051.0,0.073507]